[Event "Test Tournament"]
[Site "Emanuel Lasker Arena"]
[Date "2024.04.09"]
[Round "2"]
[White "Bauernklopper"]
[Black "Sauerbruch"]
[Result "1-0"]
[WhiteElo "1620"]
[BlackElo "1620"]
[Annotator "NA RC"]
[PlyCount "39"]
[EventDate "2024.04.09"]
[EventType "swiss (blitz)"]
[TimeControl "60"]

1. d4 {[%emt 0:00:01]} Nf6 {[%emt 0:00:01]} 2. c4 {[%emt 0:00:01]} e5 {[%emt 0:00:01]} 3. e3 {[%emt 0:00:01]} exd4 {[%emt 0:00:01]} 4. exd4 {[%emt 0:00:01]} d5 {[%emt 0:00:01]} 5. Nf3 {[%emt 0:00:01]} Bb4+ {[%emt 0:00:01]} 6. Bd2 {[%emt 0:00:01]} Bxd2+ {[%emt 0:00:01]} 7. Nbxd2 {[%emt 0:00:01]} O-O {[%emt 0:00:01]} 8. Be2 {[%emt 0:00:01]} dxc4 {[%emt 0:00:01]} 9. Nxc4 {[%emt 0:00:01]} Re8 {[%emt 0:00:04]} 10. O-O {[%emt 0:00:01]} h6 {[%emt 0:00:04]} 11. Nfe5 {[%emt 0:00:01]} Be6 {[%emt 0:00:02]} 12. Qb3 {[%emt 0:00:02]} Na6 {[%emt 0:00:04]} 13. Qxb7 {[%emt 0:00:01]} Qxd4 {[%emt 0:00:01]} 14. Rad1 {[%emt 0:00:04]} Nc5 {[%emt 0:00:04]} 15. Qxa8 {[%emt 0:00:01]} Qf4 {[%emt 0:00:03]} 16. Qf3 {[%emt 0:00:01]} Bg4 {[%emt 0:00:03]} 17. Qxf4 {[%emt 0:00:03]} Bxe2 {[%emt 0:00:01]} 18. Na3 {[%emt 0:00:03]} Nce4 {[%emt 0:00:03]} 19. f3 {[%emt 0:00:03]} Nh7 {[%emt 0:00:02]} 20. Qxf7+ {[%emt 0:00:03] Sauerbruch resigns (Lag: Av=0.07s, max=0.6s)} 1-0

[Event "Test Tournament"]
[Site "Emanuel Lasker Arena"]
[Date "2024.04.09"]
[Round "2"]
[White "Ceres"]
[Black "Copacablanca"]
[Result "1-0"]
[WhiteElo "1620"]
[BlackElo "1922"]
[Annotator "RC"]
[PlyCount "83"]
[EventDate "2024.04.09"]
[EventType "swiss (blitz)"]
[TimeControl "60"]

1. d4 {[%emt 0:00:02]} d5 {[%emt 0:00:01]} 2. e3 {[%emt 0:00:02]} e6 {[%emt 0:00:01]} 3. Nf3 {[%emt 0:00:01]} Nf6 {[%emt 0:00:01]} 4. c4 {[%emt 0:00:01]} c5 {[%emt 0:00:01]} 5. Nc3 {[%emt 0:00:02]} cxd4 {[%emt 0:00:01]} 6. exd4 {[%emt 0:00:01]} Nc6 {[%emt 0:00:01]} 7. b3 {[%emt 0:00:03]} Bb4 {[%emt 0:00:01]} 8. Qc2 {[%emt 0:00:02]} Ne4 {[%emt 0:00:01]} 9. Qxe4 {[%emt 0:00:01]} Bxc3+ {[%emt 0:00:01]} 10. Bd2 {[%emt 0:00:02]} Bxd2+ {[%emt 0:00:01]} 11. Nxd2 {[%emt 0:00:02]} dxe4 {[%emt 0:00:01]} 12. Nxe4 {[%emt 0:00:01]} Qxd4 {[%emt 0:00:04]} 13. Rd1 {[%emt 0:00:04]} b5 {[%emt 0:00:12]} 14. Rxd4 {[%emt 0:00:01]} Nxd4 {[%emt 0:00:01]} 15. cxb5 {[%emt 0:00:02]} O-O {[%emt 0:00:03]} 16. Nd2 {[%emt 0:00:04]} a6 {[%emt 0:00:03]} 17. g3 {[%emt 0:00:03]} axb5 {[%emt 0:00:01]} 18. a3 {[%emt 0:00:03]} Rxa3 {[%emt 0:00:02]} 19. f4 {[%emt 0:00:02]} e5 {[%emt 0:00:01]} 20. Be2 {[%emt 0:00:01]} exf4 {[%emt 0:00:02]} 21. gxf4 {[%emt 0:00:02]} Ra1+ {[%emt 0:00:02]} 22. Bd1 {[%emt 0:00:01]} Re8+ {[%emt 0:00:02]} 23. Kf2 {[%emt 0:00:01]} Bf5 {[%emt 0:00:03]} 24. Kg3 {[%emt 0:00:01]} Re3+ {[%emt 0:00:01]} 25. Kf2 {[%emt 0:00:01]} Rh3 {[%emt 0:00:02]} 26. Bf3 {[%emt 0:00:02]} Rxh1 {[%emt 0:00:01]} 27. Bxh1 {[%emt 0:00:01]} Rxh2+ {[%emt 0:00:01]} 28. Bg2 {[%emt 0:00:01]} h5 {[%emt 0:00:01]} 29. Nf1 {[%emt 0:00:01]} Rh4 {[%emt 0:00:01]} 30. Bf3 {[%emt 0:00:01]} Rxf4 {[%emt 0:00:01]} 31. Nh2 {[%emt 0:00:01]} Nxb3 {[%emt 0:00:01]} 32. Nf1 {[%emt 0:00:01]} b4 {[%emt 0:00:02]} 33. Nh2 {[%emt 0:00:01]} h4 {[%emt 0:00:02]} 34. Kg2 {[%emt 0:00:01]} Be4 {[%emt 0:00:01]} 35. Kf2 {[%emt 0:00:01]} Bxf3 {[%emt 0:00:01]} 36. Nxf3 {[%emt 0:00:00]} h3 {[%emt 0:00:00]} 37. Ke3 {[%emt 0:00:00]} Rc4 {[%emt 0:00:01]} 38. Nh2 {[%emt 0:00:01]} Rh4 {[%emt 0:00:01]} 39. Kf2 {[%emt 0:00:00]} Kh7 {[%emt 0:00:01]} 40. Kf3 {[%emt 0:00:01]} Kg6 {[%emt 0:00:00]} 41. Kg3 {[%emt 0:00:00]} Rh5 {[%emt 0:00:01] '} 42. Kf4 {[%emt 0:00:00] (Lag: Av=0.06s, max=0.5s)} 1-0

[Event "Test Tournament"]
[Site "Emanuel Lasker Arena"]
[Date "2024.04.09"]
[Round "2"]
[White "Covfefe"]
[Black "RCFlyer"]
[Result "0-1"]
[WhiteElo "1620"]
[BlackElo "1977"]
[Annotator "RC"]
[PlyCount "62"]
[EventDate "2024.04.09"]
[EventType "swiss (blitz)"]
[TimeControl "60"]

1. d4 {[%emt 0:00:01]} Nf6 {[%emt 0:00:01]} 2. c4 {[%emt 0:00:01]} g6 {[%emt 0:00:01]} 3. Nc3 {[%emt 0:00:01]} Bg7 {[%emt 0:00:01]} 4. e4 {[%emt 0:00:02]} d6 {[%emt 0:00:01]} 5. Nf3 {[%emt 0:00:01]} O-O {[%emt 0:00:01]} 6. Bd3 {[%emt 0:00:01]} Bg4 {[%emt 0:00:05]} 7. Bg5 {[%emt 0:00:01]} e5 {[%emt 0:00:01]} 8. dxe5 {[%emt 0:00:04]} dxe5 {[%emt 0:00:01]} 9. Nd5 {[%emt 0:00:04]} c6 {[%emt 0:00:04]} 10. Bxf6 {[%emt 0:00:04]} Bxf6 {[%emt 0:00:01]} 11. Nxf6+ {[%emt 0:00:01]} Qxf6 {[%emt 0:00:01]} 12. b4 {[%emt 0:00:04]} h5 {[%emt 0:00:04]} 13. b5 {[%emt 0:00:03]} Rd8 {[%emt 0:00:04]} 14. bxc6 {[%emt 0:00:03]} Nxc6 {[%emt 0:00:01]} 15. c5 {[%emt 0:00:03]} Bxf3 {[%emt 0:00:01]} 16. gxf3 {[%emt 0:00:01]} Nb4 {[%emt 0:00:03]} 17. c6 {[%emt 0:00:02]} Nxd3+ {[%emt 0:00:01]} 18. Kf1 {[%emt 0:00:02]} bxc6 {[%emt 0:00:01]} 19. Qd2 {[%emt 0:00:02]} Qxf3 {[%emt 0:00:02]} 20. Rg1 {[%emt 0:00:03]} Nf4 {[%emt 0:00:02]} 21. Qc2 {[%emt 0:00:01]} Rd4 {[%emt 0:00:02]} 22. Rg3 {[%emt 0:00:03]} Qh1+ {[%emt 0:00:01]} 23. Rg1 {[%emt 0:00:00]} Qxh2 {[%emt 0:00:01]} 24. Qxc6 {[%emt 0:00:01]} Rad8 {[%emt 0:00:01]} 25. Qc2 {[%emt 0:00:02]} Qh3+ {[%emt 0:00:01]} 26. Ke1 {[%emt 0:00:01]} Nd3+ {[%emt 0:00:01]} 27. Ke2 {[%emt 0:00:01]} Rxe4+ {[%emt 0:00:01]} 28. Kd2 {[%emt 0:00:01]} Ne1+ {[%emt 0:00:01]} 29. Kc1 {[%emt 0:00:01]} Nxc2 {[%emt 0:00:01]} 30. Kxc2 {[%emt 0:00:01]} Rc8+ {[%emt 0:00:01]} 31. Kd2 {[%emt 0:00:01]} Qd7# {[%emt 0:00:01] (Lag: Av=0.05s, max=0.1s)} 0-1

[Event "Test Tournament"]
[Site "Emanuel Lasker Arena"]
[Date "2024.04.09"]
[Round "2"]
[White "Don Rodrigo"]
[Black "Jamie Fraser"]
[Result "1/2-1/2"]
[WhiteElo "1620"]
[BlackElo "2119"]
[Annotator "RC"]
[PlyCount "46"]
[EventDate "2024.04.09"]
[EventType "swiss (blitz)"]
[TimeControl "60"]

1. e4 {[%emt 0:00:02]} e5 {[%emt 0:00:01]} 2. Nf3 {[%emt 0:00:01]} Nc6 {[%emt 0:00:01]} 3. Bb5 {[%emt 0:00:02]} a6 {[%emt 0:00:01]} 4. Ba4 {[%emt 0:00:01]} Nf6 {[%emt 0:00:01]} 5. O-O {[%emt 0:00:02]} Be7 {[%emt 0:00:01]} 6. Re1 {[%emt 0:00:00]} b5 {[%emt 0:00:01]} 7. Bb3 {[%emt 0:00:01]} O-O {[%emt 0:00:01]} 8. d4 {[%emt 0:00:01]} d6 {[%emt 0:00:01]} 9. a4 {[%emt 0:00:04]} Bg4 {[%emt 0:00:01]} 10. d5 {[%emt 0:00:02]} Nd4 {[%emt 0:00:04]} 11. Kh1 {[%emt 0:00:03]} Bxf3 {[%emt 0:00:04]} 12. gxf3 {[%emt 0:00:01]} Qd7 {[%emt 0:00:04]} 13. Bg5 {[%emt 0:00:03]} Qh3 {[%emt 0:00:03]} 14. Nd2 {[%emt 0:00:04]} h6 {[%emt 0:00:03]} 15. c3 {[%emt 0:00:09]} Nxb3 {[%emt 0:00:01]} 16. Bxf6 {[%emt 0:00:03]} Nxd2 {[%emt 0:00:01]} 17. Bxe7 {[%emt 0:00:01]} Nxf3 {[%emt 0:00:01]} 18. Qxf3 {[%emt 0:00:01]} Qxf3+ {[%emt 0:00:01]} 19. Kg1 {[%emt 0:00:02]} Qg4+ {[%emt 0:00:01]} 20. Kh1 {[%emt 0:00:01]} Qf3+ {[%emt 0:00:01]} 21. Kg1 {[%emt 0:00:00]} Qg4+ {[%emt 0:00:01]} 22. Kf1 {[%emt 0:00:01]} Qh3+ {[%emt 0:00:01]} 23. Kg1 {[%emt 0:00:01]} Qg4+ {[%emt 0:00:01] (Lag: Av=0.07s, max=0.6s)} 1/2-1/2

[Event "Test Tournament"]
[Site "Emanuel Lasker Arena"]
[Date "2024.04.09"]
[Round "2"]
[White "Encheladus"]
[Black "LiliBeth"]
[Result "0-1"]
[WhiteElo "1620"]
[BlackElo "1855"]
[Annotator "NA RC"]
[PlyCount "42"]
[EventDate "2024.04.09"]
[EventType "swiss (blitz)"]
[TimeControl "60"]

1. e4 {[%emt 0:00:01]} Nf6 {[%emt 0:00:01]} 2. e5 {[%emt 0:00:01]} Nd5 {[%emt 0:00:01]} 3. d4 {[%emt 0:00:01]} d6 {[%emt 0:00:01]} 4. Nf3 {[%emt 0:00:01]} dxe5 {[%emt 0:00:01]} 5. Nxe5 {[%emt 0:00:01]} c6 {[%emt 0:00:01]} 6. Be2 {[%emt 0:00:01]} Bf5 {[%emt 0:00:01]} 7. O-O {[%emt 0:00:00]} Nd7 {[%emt 0:00:01]} 8. Nf3 {[%emt 0:00:01]} e6 {[%emt 0:00:00]} 9. c4 {[%emt 0:00:01]} c5 {[%emt 0:00:02]} 10. cxd5 {[%emt 0:00:02]} exd5 {[%emt 0:00:01]} 11. dxc5 {[%emt 0:00:01]} Bxc5 {[%emt 0:00:01]} 12. Qxd5 {[%emt 0:00:01]} Qe7 {[%emt 0:00:04]} 13. Nc3 {[%emt 0:00:01]} Bg4 {[%emt 0:00:04]} 14. Qxb7 {[%emt 0:00:05]} O-O {[%emt 0:00:04]} 15. Bf4 {[%emt 0:00:04]} Qf6 {[%emt 0:00:03]} 16. Nd5 {[%emt 0:00:03]} Qe6 {[%emt 0:00:03]} 17. Rae1 {[%emt 0:00:03]} Qe4 {[%emt 0:00:03]} 18. Ne5 {[%emt 0:00:03]} Bxe2 {[%emt 0:00:01]} 19. Nxd7 {[%emt 0:00:01]} Qc2 {[%emt 0:00:03]} 20. Rc1 {[%emt 0:00:01]} Bxf1 {[%emt 0:00:05]} 21. Kxf1 {[%emt 0:00:02]} Qxf2# {[%emt 0:00:02] (Lag: Av=0.05s, max=0.1s)} 0-1

[Event "Test Tournament"]
[Site "Emanuel Lasker Arena"]
[Date "2024.04.09"]
[Round "2"]
[White "Fuerteventura"]
[Black "Zimtowitch"]
[Result "0-1"]
[WhiteElo "1620"]
[BlackElo "1896"]
[Annotator "NA RC"]
[PlyCount "92"]
[EventDate "2024.04.09"]
[EventType "swiss (blitz)"]
[TimeControl "60"]

1. e4 {[%emt 0:00:01]} c5 {[%emt 0:00:01]} 2. Nf3 {[%emt 0:00:01]} d6 {[%emt 0:00:01]} 3. d4 {[%emt 0:00:01]} cxd4 {[%emt 0:00:01]} 4. Nxd4 {[%emt 0:00:01]} Nf6 {[%emt 0:00:01]} 5. Nc3 {[%emt 0:00:01]} g6 {[%emt 0:00:01]} 6. Be3 {[%emt 0:00:01]} Bg7 {[%emt 0:00:01]} 7. f3 {[%emt 0:00:01]} O-O {[%emt 0:00:01]} 8. Qd2 {[%emt 0:00:01]} Nc6 {[%emt 0:00:01]} 9. O-O-O {[%emt 0:00:01]} d5 {[%emt 0:00:01]} 10. Qe1 {[%emt 0:00:01]} e5 {[%emt 0:00:00]} 11. Bg5 {[%emt 0:00:02]} Nxd4 {[%emt 0:00:02]} 12. Qh4 {[%emt 0:00:02]} dxe4 {[%emt 0:00:02]} 13. Nxe4 {[%emt 0:00:01]} Kh8 {[%emt 0:00:01]} 14. Bxf6 {[%emt 0:00:01]} Bxf6 {[%emt 0:00:01]} 15. Nxf6 {[%emt 0:00:01]} Kg7 {[%emt 0:00:03]} 16. c3 {[%emt 0:00:01]} Qxf6 {[%emt 0:00:01]} 17. Qxf6+ {[%emt 0:00:01]} Kxf6 {[%emt 0:00:01]} 18. cxd4 {[%emt 0:00:01]} exd4 {[%emt 0:00:01]} 19. Rxd4 {[%emt 0:00:01]} Re8 {[%emt 0:00:07]} 20. Bb5 {[%emt 0:00:06]} Re3 {[%emt 0:00:03]} 21. Rd8 {[%emt 0:00:03]} h5 {[%emt 0:00:03]} 22. h4 {[%emt 0:00:03]} Rb8 {[%emt 0:00:03]} 23. Be8 {[%emt 0:00:02]} Re7 {[%emt 0:00:02]} 24. f4 {[%emt 0:00:03]} Rc7+ {[%emt 0:00:02]} 25. Kd2 {[%emt 0:00:02]} Ke7 {[%emt 0:00:02]} 26. Rxc8 {[%emt 0:00:01]} Rbxc8 {[%emt 0:00:01]} 27. Re1+ {[%emt 0:00:02]} Kf6 {[%emt 0:00:01]} 28. Bb5 {[%emt 0:00:01]} Rc1 {[%emt 0:00:01]} 29. Rxc1 {[%emt 0:00:01]} Rxc1 {[%emt 0:00:01]} 30. Kxc1 {[%emt 0:00:01]} Kf5 {[%emt 0:00:01]} 31. g4+ {[%emt 0:00:01]} hxg4 {[%emt 0:00:01]} 32. Kd2 {[%emt 0:00:01]} Kxf4 {[%emt 0:00:01]} 33. Ke2 {[%emt 0:00:01]} f5 {[%emt 0:00:01]} 34. Kf2 {[%emt 0:00:01]} g3+ {[%emt 0:00:01]} 35. Kg2 {[%emt 0:00:01]} Kg4 {[%emt 0:00:01]} 36. Be2+ {[%emt 0:00:01]} Kxh4 {[%emt 0:00:01]} 37. Bf3 {[%emt 0:00:01]} b5 {[%emt 0:00:01]} 38. Bc6 {[%emt 0:00:01]} a6 {[%emt 0:00:01]} 39. Bf3 {[%emt 0:00:01]} f4 {[%emt 0:00:01]} 40. Bc6 {[%emt 0:00:01]} b4 {[%emt 0:00:01]} 41. Bf3 {[%emt 0:00:01]} g5 {[%emt 0:00:00]} 42. Bc6 {[%emt 0:00:01]} g4 {[%emt 0:00:01]} 43. Bb7 {[%emt 0:00:00]} f3+ {[%emt 0:00:00]} 44. Kf1 {[%emt 0:00:00]} g2+ {[%emt 0:00:00]} 45. Kg1 {[%emt 0:00:00]} Kg3 {[%emt 0:00:00]} 46. Be4 {[%emt 0:00:00]} f2# {[%emt 0:00:00] (Lag: Av=0.06s, max=0.5s)} 0-1

[Event "Test Tournament"]
[Site "Emanuel Lasker Arena"]
[Date "2024.04.09"]
[Round "2"]
[White "Fuerteventura"]
[Black "MikhailBerg"]
[Result "0-1"]
[WhiteElo "1620"]
[BlackElo "2094"]
[Annotator "RC"]
[PlyCount "50"]
[EventDate "2024.04.09"]
[EventType "swiss (blitz)"]
[TimeControl "60"]

1. e4 {[%emt 0:00:01]} e5 {[%emt 0:00:01]} 2. Nf3 {[%emt 0:00:01]} Nc6 {[%emt 0:00:01]} 3. Bb5 {[%emt 0:00:01]} a6 {[%emt 0:00:01]} 4. Ba4 {[%emt 0:00:02]} Nf6 {[%emt 0:00:01]} 5. O-O {[%emt 0:00:01]} Nxe4 {[%emt 0:00:01]} 6. d4 {[%emt 0:00:01]} b5 {[%emt 0:00:01]} 7. Bb3 {[%emt 0:00:01]} d5 {[%emt 0:00:01]} 8. dxe5 {[%emt 0:00:01]} Be6 {[%emt 0:00:01]} 9. Nbd2 {[%emt 0:00:01]} Nc5 {[%emt 0:00:01]} 10. c3 {[%emt 0:00:02]} d4 {[%emt 0:00:01]} 11. cxd4 {[%emt 0:00:01]} Nxd4 {[%emt 0:00:01]} 12. Nxd4 {[%emt 0:00:01]} Qxd4 {[%emt 0:00:01]} 13. Bxe6 {[%emt 0:00:01]} Nxe6 {[%emt 0:00:01]} 14. Qf3 {[%emt 0:00:01]} Rd8 {[%emt 0:00:01]} 15. Qc6+ {[%emt 0:00:01]} Rd7 {[%emt 0:00:01]} 16. Qxa6 {[%emt 0:00:01]} Qxe5 {[%emt 0:00:02]} 17. Nf3 {[%emt 0:00:02]} Qd5 {[%emt 0:00:04]} 18. Re1 {[%emt 0:00:03]} Bc5 {[%emt 0:00:04]} 19. Ne5 {[%emt 0:00:05]} Qd1 {[%emt 0:00:03]} 20. Bg5 {[%emt 0:00:03]} Bxf2+ {[%emt 0:00:01]} 21. Kxf2 {[%emt 0:00:01]} Rd2+ {[%emt 0:00:03]} 22. Bxd2 {[%emt 0:00:01]} Qxd2+ {[%emt 0:00:01]} 23. Re2 {[%emt 0:00:02]} Qf4+ {[%emt 0:00:04]} 24. Kg1 {[%emt 0:00:02]} O-O {[%emt 0:00:03]} 25. Qxb5 {[%emt 0:00:01]} Nd4 {[%emt 0:00:02] Time (Lag: Av=0.09s, max=0.9s) .} 0-1

[Event "Test Tournament"]
[Site "Emanuel Lasker Arena"]
[Date "2024.04.09"]
[Round "2"]
[White "Karpovs Shadow"]
[Black "Endspielexperte"]
[Result "0-1"]
[WhiteElo "1620"]
[BlackElo "1620"]
[Annotator "NA RC"]
[PlyCount "92"]
[EventDate "2024.04.09"]
[EventType "swiss (blitz)"]
[TimeControl "60"]

1. Nf3 {[%emt 0:00:01]} d5 {[%emt 0:00:01]} 2. g3 {[%emt 0:00:01]} g6 {[%emt 0:00:01]} 3. Bg2 {[%emt 0:00:01]} Bg7 {[%emt 0:00:01]} 4. d4 {[%emt 0:00:01]} Nf6 {[%emt 0:00:01]} 5. O-O {[%emt 0:00:01]} O-O {[%emt 0:00:01]} 6. c4 {[%emt 0:00:02]} c6 {[%emt 0:00:01]} 7. Qb3 {[%emt 0:00:01]} dxc4 {[%emt 0:00:01]} 8. Qxc4 {[%emt 0:00:01]} Be6 {[%emt 0:00:01]} 9. Qc2 {[%emt 0:00:01]} Bf5 {[%emt 0:00:01]} 10. Qb3 {[%emt 0:00:01]} Qb6 {[%emt 0:00:01]} 11. Nc3 {[%emt 0:00:01]} Qxb3 {[%emt 0:00:01]} 12. axb3 {[%emt 0:00:01]} Nbd7 {[%emt 0:00:04]} 13. Re1 {[%emt 0:00:02]} Bc2 {[%emt 0:00:03]} 14. e4 {[%emt 0:00:04]} a5 {[%emt 0:00:01]} 15. e5 {[%emt 0:00:04]} Nd5 {[%emt 0:00:04]} 16. Bd2 {[%emt 0:00:03]} e6 {[%emt 0:00:01]} 17. Nxd5 {[%emt 0:00:03]} cxd5 {[%emt 0:00:01]} 18. Rxa5 {[%emt 0:00:01]} Rxa5 {[%emt 0:00:01]} 19. Bxa5 {[%emt 0:00:01]} Bxb3 {[%emt 0:00:01]} 20. Ng5 {[%emt 0:00:03]} Rc8 {[%emt 0:00:02]} 21. f4 {[%emt 0:00:03]} Rc2 {[%emt 0:00:03]} 22. Rb1 {[%emt 0:00:02]} Ba2 {[%emt 0:00:03]} 23. Ra1 {[%emt 0:00:03]} Rxb2 {[%emt 0:00:01]} 24. Bc7 {[%emt 0:00:02]} b5 {[%emt 0:00:03]} 25. Bd6 {[%emt 0:00:02]} b4 {[%emt 0:00:02]} 26. Bf1 {[%emt 0:00:02]} b3 {[%emt 0:00:02]} 27. Bb5 {[%emt 0:00:02]} Rc2 {[%emt 0:00:02]} 28. Bxd7 {[%emt 0:00:01]} b2 {[%emt 0:00:01]} 29. Rf1 {[%emt 0:00:01]} Rc1 {[%emt 0:00:03]} 30. Nxe6 {[%emt 0:00:01]} Rxf1+ {[%emt 0:00:01]} 31. Kxf1 {[%emt 0:00:01]} b1=Q+ {[%emt 0:00:01]} 32. Kg2 {[%emt 0:00:01]} Qc2+ {[%emt 0:00:02]} 33. Kh3 {[%emt 0:00:01]} Bh8 {[%emt 0:00:02]} 34. Nc7 {[%emt 0:00:02]} Bg7 {[%emt 0:00:01]} 35. f5 {[%emt 0:00:01]} gxf5 {[%emt 0:00:01]} 36. Ne8 {[%emt 0:00:00]} Bf8 {[%emt 0:00:02]} 37. Nf6+ {[%emt 0:00:00]} Kh8 {[%emt 0:00:00]} 38. Bxf8 {[%emt 0:00:00]} Bc4 {[%emt 0:00:00]} 39. Bc6 {[%emt 0:00:01]} f4 {[%emt 0:00:01]} 40. Nxd5 {[%emt 0:00:01]} Bxd5 {[%emt 0:00:01]} 41. Bxd5 {[%emt 0:00:00]} fxg3 {[%emt 0:00:01]} 42. Kxg3 {[%emt 0:00:01]} Qd3+ {[%emt 0:00:01]} 43. Bf3 {[%emt 0:00:01]} Qxd4 {[%emt 0:00:00]} 44. Bc5 {[%emt 0:00:00]} Qxe5+ {[%emt 0:00:00]} 45. Kg2 {[%emt 0:00:01]} Qxc5 {[%emt 0:00:00]} 46. Be4 {[%emt 0:00:00] .} Qd6 {[%emt 0:00:01]} 0-1

[Event "Test Tournament"]
[Site "Emanuel Lasker Arena"]
[Date "2024.04.09"]
[Round "2"]
[White "Karpovs Shadow"]
[Black "Lord Grantham"]
[Result "1-0"]
[WhiteElo "1620"]
[BlackElo "1620"]
[Annotator "NA RC"]
[PlyCount "101"]
[EventDate "2024.04.09"]
[EventType "swiss (blitz)"]
[TimeControl "60"]

1. c4 {[%emt 0:00:01]} e5 {[%emt 0:00:01]} 2. g3 {[%emt 0:00:01]} Nc6 {[%emt 0:00:01]} 3. Bg2 {[%emt 0:00:01]} g6 {[%emt 0:00:01]} 4. Nc3 {[%emt 0:00:01]} Bg7 {[%emt 0:00:01]} 5. Rb1 {[%emt 0:00:01]} a5 {[%emt 0:00:01]} 6. d3 {[%emt 0:00:05]} d6 {[%emt 0:00:01]} 7. a3 {[%emt 0:00:04]} Nf6 {[%emt 0:00:01]} 8. Nf3 {[%emt 0:00:01]} O-O {[%emt 0:00:01]} 9. b4 {[%emt 0:00:03]} d5 {[%emt 0:00:01]} 10. b5 {[%emt 0:00:01]} e4 {[%emt 0:00:01]} 11. dxe4 {[%emt 0:00:03]} Nxe4 {[%emt 0:00:01]} 12. Nxe4 {[%emt 0:00:01]} dxe4 {[%emt 0:00:01]} 13. bxc6 {[%emt 0:00:01]} Qxd1+ {[%emt 0:00:01]} 14. Kxd1 {[%emt 0:00:01]} exf3 {[%emt 0:00:01]} 15. cxb7 {[%emt 0:00:01]} Bxb7 {[%emt 0:00:01]} 16. Bxf3 {[%emt 0:00:01]} Bxf3 {[%emt 0:00:01]} 17. exf3 {[%emt 0:00:01]} a4 {[%emt 0:00:01]} 18. Rb7 {[%emt 0:00:06]} c5 {[%emt 0:00:04]} 19. Bf4 {[%emt 0:00:02]} Bd4 {[%emt 0:00:03]} 20. Ke2 {[%emt 0:00:01]} h5 {[%emt 0:00:03]} 21. Rd1 {[%emt 0:00:02]} Rfe8+ {[%emt 0:00:03]} 22. Kf1 {[%emt 0:00:02]} Ra5 {[%emt 0:00:03]} 23. h4 {[%emt 0:00:02]} Re6 {[%emt 0:00:03]} 24. Rd3 {[%emt 0:00:02]} Kg7 {[%emt 0:00:03]} 25. Bg5 {[%emt 0:00:02]} Ra8 {[%emt 0:00:02]} 26. Be3 {[%emt 0:00:01]} Rd8 {[%emt 0:00:02]} 27. Ra7 {[%emt 0:00:02]} Red6 {[%emt 0:00:02]} 28. Bg5 {[%emt 0:00:01]} Rg8 {[%emt 0:00:02]} 29. Bf4 {[%emt 0:00:02]} Rf6 {[%emt 0:00:02]} 30. Kg2 {[%emt 0:00:01]} Re8 {[%emt 0:00:01]} 31. Rxa4 {[%emt 0:00:00]} Re1 {[%emt 0:00:01]} 32. Ra7 {[%emt 0:00:01]} Rb6 {[%emt 0:00:01]} 33. a4 {[%emt 0:00:01]} Rb2 {[%emt 0:00:01]} 34. Rd2 {[%emt 0:00:01]} Bc3 {[%emt 0:00:02]} 35. Rdd7 {[%emt 0:00:01]} Bd4 {[%emt 0:00:01]} 36. Rxf7+ {[%emt 0:00:01]} Kg8 {[%emt 0:00:00]} 37. Kh3 {[%emt 0:00:00]} Rxf2 {[%emt 0:00:00]} 38. g4 {[%emt 0:00:00]} Rxf3+ {[%emt 0:00:00]} 39. Bg3 {[%emt 0:00:00]} Rxf7 {[%emt 0:00:00]} 40. Bxe1 {[%emt 0:00:00]} Rxa7 {[%emt 0:00:00]} 41. gxh5 {[%emt 0:00:00]} gxh5 {[%emt 0:00:00]} 42. a5 {[%emt 0:00:00]} Ra6 {[%emt 0:00:01]} 43. Kg2 {[%emt 0:00:00]} Kf7 {[%emt 0:00:00]} 44. Kf3 {[%emt 0:00:00]} Ke7 {[%emt 0:00:00]} 45. Kf4 {[%emt 0:00:01]} Kd8 {[%emt 0:00:01]} 46. Kg5 {[%emt 0:00:00]} Re6 {[%emt 0:00:01]} 47. Kxh5 {[%emt 0:00:00]} Rxe1 {[%emt 0:00:00]} 48. a6 {[%emt 0:00:00]} Ra1 {[%emt 0:00:00]} 49. Kh6 {[%emt 0:00:00]} Rxa6+ {[%emt 0:00:00]} 50. Kh7 {[%emt 0:00:01]} Ke8 {[%emt 0:00:00] '} 51. h5 {[%emt 0:00:00] (Lag: Av=0.07s, max=0.6s)} 1-0

[Event "Test Tournament"]
[Site "Emanuel Lasker Arena"]
[Date "2024.04.09"]
[Round "2"]
[White "Klaus Junge"]
[Black "Local Hero"]
[Result "1-0"]
[WhiteElo "1620"]
[BlackElo "1985"]
[Annotator "RC"]
[PlyCount "35"]
[EventDate "2024.04.09"]
[EventType "swiss (blitz)"]
[TimeControl "60"]

1. e4 {[%emt 0:00:01]} Nf6 {[%emt 0:00:01]} 2. e5 {[%emt 0:00:01]} Nd5 {[%emt 0:00:01]} 3. d4 {[%emt 0:00:01]} d6 {[%emt 0:00:01]} 4. c4 {[%emt 0:00:01]} Nb6 {[%emt 0:00:01]} 5. f4 {[%emt 0:00:01]} dxe5 {[%emt 0:00:01]} 6. fxe5 {[%emt 0:00:01]} Bf5 {[%emt 0:00:01]} 7. Nc3 {[%emt 0:00:01]} Nc6 {[%emt 0:00:01]} 8. g4 {[%emt 0:00:01]} a5 {[%emt 0:00:01]} 9. gxf5 {[%emt 0:00:02]} Nxd4 {[%emt 0:00:01]} 10. c5 {[%emt 0:00:02]} Qd7 {[%emt 0:00:02]} 11. cxb6 {[%emt 0:00:01]} O-O-O {[%emt 0:00:04]} 12. Nb5 {[%emt 0:00:04]} c5 {[%emt 0:00:01]} 13. Nf3 {[%emt 0:00:01]} Qxf5 {[%emt 0:00:04]} 14. Nbxd4 {[%emt 0:00:01]} cxd4 {[%emt 0:00:01]} 15. Bd3 {[%emt 0:00:04]} Qe6 {[%emt 0:00:02]} 16. Qc2+ {[%emt 0:00:03]} Qc6 {[%emt 0:00:01]} 17. Qxc6+ {[%emt 0:00:01]} bxc6 {[%emt 0:00:01]} 18. Ba6+ {[%emt 0:00:03] Local Hero resigns (Lag: Av=0.09s, max=0.5s)} 1-0